[Event "Czech Open-Rapid 2022"]
[Site "Pardubice"]
[Date "2022.07.21"]
[Round "4.3"]
[White "Harsha Bharathakoti"]
[Black "Blatny, Pavel"]
[Result "1-0"]
[ECO "A40"]
[WhiteElo "2547"]
[BlackElo "2325"]
[Annotator "TA"]
[PlyCount "120"]
[EventDate "2022.07.20"]
[EventType "swiss"]
[EventCountry "CZE"]
[SourceTitle "playchess.com"]
[Source "ChessBase"]
[SourceQuality "1"]
[TimeControl "1200+10"]

{[%evp 9,120,75,73,80,73,70,62,29,52,31,46,52,87,85,122,131,133,127,100,99,88,99,85,77,86,82,75,96,111,102,89,91,108,85,80,0,0,0,0,0,0,0,0,0,0,0,8,12,0,4,22,19,29,38,32,13,41,31,49,50,96,90,91,97,100,88,144,143,147,148,145,79,56,10,216,183,178,220,243,226,443,479,481,481,452,426,417,218,377,157,208,97,92,116,105,301,185,0,34,0,157,0,0,0,0,0,931,814,1655,1493,1031,843,648]} 1. d4 {[%emt 0:00:04]} b6 {[%emt 0:02:00]} 2. e4 {[%emt 0:00:57]} Bb7 {[%emt 0:00:03]} 3. Bd3 {[%emt 0:00:02]} e6 {[%emt 0:00:03]} 4. Nf3 {[%emt 0:00:07]} g6 {[%emt 0:00:09]} 5. c4 {[%emt 0:02:01]} Bg7 {[%emt 0:00:13]} 6. Nc3 {[%emt 0:00:04] B00: Queen's Fianchetto Defence, Nimzowitsch Defence.} d6 {[%emt 0:00:01]} 7. Be3 {[%emt 0:03:12]} (7. Bg5 {with more complications.} Ne7 8. Qd2 Nd7 9. Bc2) 7... Nd7 {[%emt 0:00:04]} 8. Qc2 {[%emt 0:00:57] White is slightly better.} Ne7 {[%emt 0:00:08]} 9. h4 {[%emt 0:01:05]} h6 {[%emt 0:00:02] [#]} 10. d5 $146 {[%emt 0:00:01]} ({Predecessor:} 10. O-O-O a6 11. Kb1 c5 12. d5 e5 13. h5 g5 14. Ng1 Qb8 15. Nge2 Qc7 16. Ng3 {1-0 (44) Kashlinskaya,A (2494)-Hauge,L (2483) Chess.com INT 2021}) 10... e5 {[%emt 0:00:38]} 11. h5 {[%emt 0:00:28]} Nf6 {[%emt 0:01:22]} 12. hxg6 {[%emt 0:00:07]} fxg6 {[%emt 0:00:16]} 13. Be2 {[%emt 0:00:19]} Qd7 {[%emt 0:00:17]} 14. O-O-O {[%emt 0:03:05][%cal Oc4c5]} Ng4 {[%emt 0:00:14]} 15. c5 {[%emt 0:00:02]} Nxe3 {[%emt 0:01:31]} 16. fxe3 {[%emt 0:00:02]} bxc5 {[%emt 0:00:15]} 17. Bb5 {[%emt 0:02:32]} c6 {[%emt 0:00:01]} 18. dxc6 {[%emt 0:00:01]} Bxc6 {[%emt 0:00:02]} 19. Qb3 {[%emt 0:01:21]} Rb8 {[%emt 0:00:42][%cal Rc6b5]} 20. Bxc6 {[%emt 0:00:02]} Nxc6 {[%emt 0:00:05]} 21. Qd5 {[%emt 0:00:01] 0x0.002469ff42a8dp-1022s more active pieces.} Nb4 {[%emt 0:01:24]} 22. Qxd6 {[%emt 0:00:06]} ({White should try} 22. Qc4 $1 $16) 22... Qxd6 $11 {[%emt 0:00:03]} 23. Rxd6 {[%emt 0:00:01]} c4 $1 $36 {[%emt 0:00:16][%cal Bc5c4,Bc4d3][%mdl 2080] Black fights for an advantage.} 24. Ne1 {[%emt 0:00:09] Against Nd3+. Pair of Knights!} (24. Rxg6 Nd3+ 25. Kb1 (25. Kd1 $2 Kf7 $19) 25... Rxb2+ 26. Ka1 O-O $15) 24... O-O $1 {[%emt 0:00:52]} 25. a3 {[%emt 0:02:38]} Nd3+ {[%emt 0:00:02]} 26. Nxd3 {[%emt 0:00:01]} cxd3 {[%emt 0:00:01]} 27. Nd1 {[%emt 0:00:01] Prevents Rf2.} Rfc8+ {[%emt 0:00:33]} 28. Kb1 {[%emt 0:00:01]} Rc2 {[%emt 0:00:23]} 29. Rxg6 {[%emt 0:00:01]} Kh7 {[%emt 0:00:47]} 30. Rd6 {[%emt 0:00:01]} Rxg2 {[%emt 0:02:02]} 31. Rxd3 {[%emt 0:00:01]} (31. Rd7 {feels hotter.} Kg6 32. Rxd3 Rb7 33. Rd6+) 31... Rb7 {[%emt 0:00:06] Prevents Rd7.} 32. Rd6 {[%emt 0:00:25]} Bf8 {[%emt 0:00:29]} 33. Ra6 {[%emt 0:01:11]} Bg7 {[%emt 0:00:40]} 34. Rc6 {[%emt 0:00:15]} Rb6 {[%emt 0:01:12]} (34... Rg6 $14 35. Rc5 Rg2) 35. Rxb6 $16 {[%emt 0:00:56]} axb6 {[%emt 0:00:01][%mdl 4096] Endgame KRB-KRN} 36. Nc3 {[%emt 0:00:01]} Bf6 {[%emt 0:00:57]} 37. Nd5 {[%emt 0:00:02]} Bg5 {[%emt 0:00:01]} (37... Bd8 $142) 38. Nxb6 {[%emt 0:00:39] Strongly threatening Nd5.} Bxe3 {[%emt 0:00:01]} 39. Nc4 {[%emt 0:00:00][%csl LRe3,LRe5]} Bd4 {[%emt 0:00:04]} 40. a4 {[%emt 0:00:01]} (40. b4 $142 $1) 40... Kg6 {[%emt 0:00:22]} 41. b4 {[%emt 0:00:28]} (41. a5 $14) 41... h5 $2 {[%emt 0:00:40]} (41... Rg3 $1 $11 {and Black is okay.}) 42. b5 $18 {[%emt 0:00:24] Threatens to win with b6.} Rg3 {[%emt 0:00:37]} 43. Ka2 {[%emt 0:00:40] Inhibits Rb3. aiming for b6.} ({Inferior is} 43. b6 Bxb6 44. Nxb6 (44. Nxe5+ Kg5 $11) 44... Rb3+ 45. Ka2 Rxb6 $11) 43... Rc3 {[%emt 0:00:17]} 44. Na5 {[%emt 0:00:00]} Bf2 $2 {[%emt 0:02:59]} (44... Bc5 {is a better defense.}) 45. Nc6 {[%emt 0:00:36]} h4 {[%emt 0:01:35][%cal Bh5h4,Bh4h3][%mdl 32]} 46. Kb2 {[%emt 0:00:45]} Rc5 {[%emt 0:01:20]} 47. Kb3 {[%emt 0:00:02]} Kg5 {[%emt 0:00:19]} 48. Kb4 {[%emt 0:00:58]} (48. Nb4 $142 Bd4 49. Nc6) 48... Kg4 $2 {[%emt 0:00:02]} (48... Rc2 49. a5 (49. Nxe5 Re2 $16) 49... Kf4) 49. a5 {[%emt 0:00:00]} (49. Rh2 $18 Rc2 50. Kb3 (50. Nxe5+ Kg3 $11)) 49... Kg3 $16 {[%emt 0:00:29]} 50. Ne7 {[%emt 0:01:14]} (50. a6 $18 {is more deadly.} Rc2 51. Kb3 (51. Nxe5 Re2 $16)) 50... h3 {[%emt 0:01:23]} 51. b6 {[%emt 0:00:08]} Rc2 {[%emt 0:00:01]} 52. Kb3 {[%emt 0:00:01] Against Rb2+} Rc5 {[%emt 0:00:08] [#]} 53. Kb4 {[%emt 0:00:13]} (53. Ka4 $1 $18 {b7 is the strong threat.} Rc2 54. b7) 53... Rc2 $14 {[%emt 0:00:01]} 54. Nd5 {[%emt 0:00:29] And now Kb5 would win.} Kg2 $2 {[%emt 0:00:17] [#]} ({Black should play} 54... h2 $11) 55. Rxh3 $2 {[%emt 0:00:01]} Kxh3 $11 {[%emt 0:00:06]} 56. a6 {[%emt 0:00:00]} Ra2 {[%emt 0:00:35]} 57. Kb5 {[%emt 0:00:16]} Kg4 $2 {[%emt 0:00:08][%mdl 8192]} (57... Rb2+ $11 58. Kc6 Kg4) 58. Nb4 $18 {[%emt 0:00:08] White is clearly winning.} Ra1 {[%emt 0:00:14]} 59. b7 {[%emt 0:00:21]} Ba7 {[%emt 0:00:27]} 60. Nc6 $1 {[%csl LRa7,LRe5]} Rb1+ {Weighted Error Value: White=0.28 (precise) /Black=0.26 (precise)} 1-0

[Event "Czech Open-Rapid 2022"]
[Site "Pardubice"]
[Date "2022.07.21"]
[Round "4.4"]
[White "Pulpan, Jakub"]
[Black "Mojzis, Jaroslav"]
[Result "1-0"]
[ECO "C54"]
[WhiteElo "2424"]
[BlackElo "2108"]
[Annotator "TA"]
[PlyCount "125"]
[EventDate "2022.07.20"]
[EventType "swiss"]
[EventCountry "CZE"]
[SourceTitle "playchess.com"]
[Source "ChessBase"]
[SourceQuality "1"]
[TimeControl "1200+10"]

{[%evp 12,124,32,20,25,7,33,31,35,-6,17,16,29,23,30,19,25,32,26,24,56,53,72,0,0,0,0,-98,-91,-116,-110,-135,-154,-147,-141,-401,-101,-87,-102,-158,-76,-84,-86,-92,-86,-82,-79,-88,-62,-70,-75,-248,-254,-300,-282,-271,-287,-313,-302,-379,-300,-299,-109,-300,-295,-300,-300,-331,-317,-348,-344,-353,-356,-375,-258,-253,-254,-451,-448,-406,-346,-389,-77,-77,-35,-35,-35,-37,-37,-38,-35,-46,-14,-77,-14,-14,-8,-8,-8,-8,0,0,0,0,0,0,22,22,22,22,22,22,241,94,29999]} 1. e4 {[%emt 0:02:00]} e5 {[%emt 0:00:03]} 2. Nf3 {[%emt 0:00:02]} Nc6 {[%emt 0:00:04]} 3. Bc4 {[%emt 0:00:01]} Bc5 {[%emt 0:00:04]} 4. c3 {[%emt 0:00:03]} Nf6 {[%emt 0:00:04]} 5. d3 {[%emt 0:00:00]} d6 {[%emt 0:00:11]} 6. O-O {[%emt 0:00:08]} h6 {[%emt 0:00:11]} 7. Nbd2 {[%emt 0:00:05][%cal Bb1d2,Bd2f1,Bf1g3][%mdl 32]} O-O {[%emt 0:00:07] C54: Giuoco Piano: 4 c3 Nf6, main lines with 5 d4 and 5 d3.} 8. Re1 {[%emt 0:00:05]} Re8 {[%emt 0:01:28]} 9. Nf1 {[%emt 0:00:06]} Be6 {[%emt 0:01:00] White is slightly better.} 10. Bb5 {[%emt 0:03:28]} Bd7 {[%emt 0:00:41]} (10... a6 $5 {[%cal Ra6b5]} 11. Bxc6 bxc6 $11) 11. Ng3 {[%emt 0:00:32] [#]} a6 $146 {[%emt 0:02:00]} ({Predecessor:} 11... Ne7 12. Bxd7 Qxd7 13. d4 Bb6 14. dxe5 Ng4 15. Rf1 Ng6 16. exd6 cxd6 17. h3 Nf6 18. Nd2 Rad8 {1-0 (58) Ruppert,H (1162)-Coskun,E (1015) Bad Soden 2018}) 12. Ba4 {[%emt 0:00:23]} b5 {[%emt 0:02:49]} 13. Bb3 {[%emt 0:00:01]} a5 {[%emt 0:01:59]} 14. a4 {[%emt 0:00:12]} b4 {[%emt 0:02:28]} 15. h3 {[%emt 0:00:09]} Qb8 {[%emt 0:00:14]} 16. d4 {[%emt 0:01:13]} Ba7 {[%emt 0:01:21]} 17. Bc4 {[%emt 0:01:14]} ({Better is} 17. Be3 $16) 17... bxc3 $11 {[%emt 0:00:29]} 18. bxc3 {[%emt 0:00:01]} exd4 {[%emt 0:00:13]} 19. cxd4 {[%emt 0:04:22] [#]} (19. Bd2 $1 $11) 19... Qb4 $1 $17 {[%emt 0:00:12]} ({Resist} 19... Qb6 20. Be3 Qb8 21. Qd2 Nxe4 22. Nxe4 Rxe4 23. Bd5 $16) 20. Qd3 {[%emt 0:02:38] [#] Ba3 is the strong threat.} Nxd4 $1 {[%emt 0:00:32][%mdl 512]} 21. Ba3 {[%emt 0:00:30]} (21. Bd2 Nxf3+) 21... Nxf3+ {[%emt 0:00:15]} 22. gxf3 {[%emt 0:00:01]} Qb6 {[%emt 0:00:20]} ({Worse is} 22... Qxa4 23. Bxd6 Qc6 24. Bf4 $15) 23. Ra2 {[%emt 0:01:26][%mdl 8192] [#]} (23. Re2 $17 {might work better.}) 23... Qd4 $2 {[%emt 0:01:06]} (23... d5 $1 $19 {[%cal Rd5c4]} 24. Bb3 c5 25. Bxd5 Nxd5 26. Qxd5 Be6) 24. Qxd4 {[%emt 0:01:03]} Bxd4 {[%emt 0:00:02]} 25. Kg2 {[%emt 0:00:17]} (25. Ne2 $142 Bb6 26. Bb2) 25... Be6 {[%emt 0:02:06]} (25... d5 $142 26. Ne2 dxc4 27. Nxd4 Bxa4) 26. Rc1 {[%emt 0:00:22]} Bxc4 {[%emt 0:00:08]} 27. Rxc4 {[%emt 0:00:01]} Bb6 {[%emt 0:00:01]} 28. Nf5 {[%emt 0:02:24]} Nd7 {[%emt 0:00:23]} 29. Bb2 {[%emt 0:00:21]} Ne5 {[%emt 0:00:19]} 30. Bxe5 {[%emt 0:01:09]} Rxe5 {[%emt 0:00:07]} 31. Rb2 $2 {[%emt 0:00:16]} (31. f4 $17 {keeps fighting.} Ree8 32. Ra3) 31... d5 $19 {[%emt 0:00:21]} 32. Rc6 {[%emt 0:00:36]} dxe4 {[%emt 0:00:11]} 33. fxe4 {[%emt 0:00:02]} Rxe4 {[%emt 0:00:11]} 34. Rb3 {[%emt 0:00:26]} Rd8 {[%emt 0:00:49]} ({Don't go for} 34... Rxa4 $2 35. Rg3 g6 36. Ne7+ Kg7 37. Nd5 $19) 35. Rg3 {[%emt 0:00:05]} g6 {[%emt 0:00:50] Threatens to win with ...Rd2.} 36. Nxh6+ {[%emt 0:00:15]} Kf8 $2 {[%emt 0:00:02]} (36... Kg7 $19 37. Nf5+ Kh7) 37. Rc2 $2 {[%emt 0:00:11]} (37. Rf3 $17 Kg7 38. Nxf7) 37... Rf4 {[%emt 0:00:24]} 38. Ng4 {[%emt 0:00:07]} Rdd4 {[%emt 0:00:23]} 39. Ne5 {[%emt 0:00:06]} Rxa4 {[%emt 0:00:13]} 40. Rd2 {[%emt 0:00:15]} Rad4 {[%emt 0:00:25]} 41. Rc2 {[%emt 0:00:01]} Rd5 {[%emt 0:00:13]} 42. Rg5 {[%emt 0:00:16][%cal Oe5g6]} Rf5 {[%emt 0:00:26]} 43. Rxf5 {[%emt 0:00:09]} gxf5 {[%emt 0:00:02][%mdl 4096] Endgame KRB-KRN} 44. f4 {[%emt 0:00:01]} (44. Nc4) 44... a4 {[%emt 0:00:05]} 45. Ra2 {[%emt 0:00:07]} Ra5 {[%emt 0:00:23]} 46. Ra3 {[%emt 0:00:03]} Bc5 $2 {[%emt 0:00:05]} (46... Bd4 $19 {and Black stays clearly on top. Strongly threatening ...Bb2.} 47. Nc4 Bc5) 47. Nd7+ $17 {[%emt 0:00:01]} Ke7 {[%emt 0:00:12]} (47... Kg7 $5 {[%cal Rc5a3]} 48. Nxc5 Rxc5 49. Rxa4 Rc2+ 50. Kf3 Rc3+ 51. Kg2 Kg6 $15) 48. Nxc5 {[%emt 0:00:01]} Rxc5 {[%emt 0:00:01]} 49. Rxa4 $15 {[%emt 0:00:00] KR-KR} Rc2+ {[%emt 0:01:13]} 50. Kg3 {[%emt 0:00:01]} Rc3+ {[%emt 0:00:02]} 51. Kg2 {[%emt 0:00:04]} c5 {[%emt 0:00:12]} 52. Ra7+ {[%emt 0:00:05]} (52. h4 $11) 52... Ke6 {[%emt 0:00:02]} (52... Kf6 $17) 53. h4 $11 {[%emt 0:00:05]} Rb3 {[%emt 0:00:26]} 54. h5 {[%emt 0:00:19]} c4 {[%emt 0:00:07]} 55. h6 {[%emt 0:00:09]} c3 {[%emt 0:00:16]} 56. Rc7 {[%emt 0:00:23]} Rb8 {[%emt 0:00:43]} 57. Rxc3 {[%emt 0:00:47]} Rh8 {[%emt 0:00:02]} 58. Rc7 {[%emt 0:00:03]} Kf6 {[%emt 0:00:08]} 59. Rc6+ {[%emt 0:00:03]} Ke7 {[%emt 0:00:05]} 60. Ra6 {[%emt 0:00:21]} Rh7 {[%emt 0:00:30]} 61. Kf3 {[%emt 0:00:05]} Kf8 $2 {[%emt 0:00:06]} (61... Rh8 $11 {and Black stays safe.}) 62. Ke3 {[%emt 0:00:05]} (62. Kg3 $18 {is the precise move to win. Black must now prevent Kh4.} f6 63. Rxf6+ Kg8 64. Kh4) 62... Kg8 $2 {[%emt 0:00:07][%mdl 8192]} (62... Ke7 $16) 63. Ra8# {Quite a comeback for White.  Weighted Error Value: White=0.34/Black=0.60} 1-0

[Event "Czech Open-Rapid 2022"]
[Site "Pardubice"]
[Date "2022.07.21"]
[Round "4.5"]
[White "Cerveny, Martin"]
[Black "Jirovsky, Milos"]
[Result "1-0"]
[ECO "D35"]
[WhiteElo "2396"]
[BlackElo "2458"]
[Annotator "TA"]
[PlyCount "81"]
[EventDate "2022.07.20"]
[EventType "swiss"]
[EventCountry "CZE"]
[SourceTitle "playchess.com"]
[Source "ChessBase"]
[SourceQuality "1"]
[TimeControl "1200+10"]

{[%evp 18,81,34,30,34,23,33,29,51,59,67,67,67,67,70,43,55,51,65,48,91,75,114,84,110,56,56,56,90,84,91,84,87,63,130,131,200,176,420,164,161,158,162,177,158,152,155,128,128,107,485,351,448,462,433,435,897,862,881,843,972,813,817,808,736,678]} 1. d4 {[%emt 0:00:02]} d5 {[%emt 0:00:04]} 2. c4 {[%emt 0:00:03]} e6 {[%emt 0:00:04]} 3. Nc3 {[%emt 0:00:02]} Nf6 {[%emt 0:00:03]} 4. cxd5 {[%emt 0:00:05]} exd5 {[%emt 0:00:02]} 5. Bg5 {[%emt 0:00:02]} c6 {[%emt 0:00:01]} 6. e3 {[%emt 0:00:01]} Bf5 {[%emt 0:00:02]} 7. Qf3 {[%emt 0:00:10]} Bg6 {[%emt 0:00:01]} 8. Bxf6 {[%emt 0:00:03]} Qxf6 {[%emt 0:00:01]} 9. Qxf6 {[%emt 0:00:02]} gxf6 {[%emt 0:00:02]} 10. Nf3 {[%emt 0:00:02]} Nd7 {[%emt 0:00:06] D35: Queen's Gambit Declined: Exchange Variation.} 11. Nh4 {[%emt 0:00:52]} Be7 {[%emt 0:00:02]} 12. Ne2 {[%emt 0:00:28]} f5 {[%emt 0:01:24] White has an edge.} 13. g3 {[%emt 0:00:03]} Nb6 {[%emt 0:00:35]} 14. Nf4 {[%emt 0:00:24]} Nc8 {[%emt 0:00:09]} 15. Bd3 {[%emt 0:01:18]} Nd6 {[%emt 0:00:04] [#]} 16. f3 $146 {[%emt 0:00:04]} ({Predecessor:} 16. Nf3 h6 17. Ne5 Bh7 18. Rc1 a5 19. Rg1 Bg5 20. Be2 Rg8 21. Ned3 Ke7 22. Kf1 {0-1 (117) Boruchovsky,A (2542)-Zilka,S (2593) Terme Catez 2021}) 16... Kd7 {[%emt 0:00:56]} 17. Kf2 {[%emt 0:00:05]} Rae8 {[%emt 0:00:16]} 18. b3 {[%emt 0:01:13]} Bd8 {[%emt 0:00:37]} 19. Nhg2 {[%emt 0:00:10][%cal Bh4g2,Bg2e1,Be1d3,Bd3c5][%mdl 32]} Rhg8 {[%emt 0:01:36]} 20. h4 {[%emt 0:00:03] Black must now prevent h5.} h6 {[%emt 0:00:05]} 21. a4 {[%emt 0:01:07]} (21. h5 $16 Bh7 22. b4) 21... a5 $1 $14 {[%emt 0:00:02]} 22. Bc2 {[%emt 0:01:10]} Rg7 {[%emt 0:02:09]} 23. Ne1 {[%emt 0:01:53]} Rgg8 {[%emt 0:00:18]} 24. Ned3 {[%emt 0:00:18]} Bf6 {[%emt 0:00:02] Against Ne5+} 25. Rab1 {[%emt 0:00:23]} Kc7 {[%emt 0:00:05] [#]} (25... Re7 $14) 26. Rhc1 $1 $16 {[%emt 0:00:29]} Kb8 {[%emt 0:00:10]} (26... Ra8 $16 {keeps fighting.} 27. Bd1 Kd8) 27. b4 {[%emt 0:00:11]} axb4 {[%emt 0:00:03]} (27... Nc4) 28. Rxb4 $2 {[%emt 0:00:10]} (28. Nxb4 Rc8 29. Bd3) 28... Ka7 $18 {[%emt 0:00:03]} 29. Nc5 {[%emt 0:00:09] Pair of Knights!} Bd8 {[%emt 0:00:17]} 30. Bd3 {[%emt 0:00:36][%cal Oc5b7] Nxb7! is the strong threat.} Re7 {[%emt 0:00:14]} 31. a5 {[%emt 0:00:20]} Rge8 {[%emt 0:00:13]} 32. h5 {[%emt 0:01:01]} Bh7 {[%emt 0:00:12]} 33. Rcb1 {[%emt 0:00:43] White is much more active.} ({Don't take} 33. a6 $6 b5 $14) 33... Rc7 $2 {[%emt 0:00:36][%mdl 8192] [#] Black cannot hold the game after this.} (33... Bg8 $16) 34. Ba6 $1 {[%emt 0:01:53][%mdl 512]} Ree7 {[%emt 0:01:13]} (34... Be7 35. Rb6) 35. Rb6 {[%emt 0:00:01][%cal Bb4b6,Bb6a6,Ba6c6,Bc6h6][%mdl 32] White is clearly winning.} Rcd7 {[%emt 0:00:56]} 36. Bxb7 {[%emt 0:01:07]} (36. Nxd7 Rxd7 37. Bxb7 Rxb7 $16) 36... Nxb7 {[%emt 0:01:26]} (36... Rxb7 $142 37. Nxd5 (37. Nxb7 Rxb7 38. Rxc6 Rxb1 $16) 37... Bxb6 38. axb6+ Kb8 39. Nxb7 Rxb7) 37. Ra6+ {[%emt 0:00:11]} Kb8 {[%emt 0:00:00]} 38. Rxc6 {[%emt 0:00:08]} Bxa5 {[%emt 0:00:06]} 39. Nxd7+ {[%emt 0:00:35]} Rxd7 {[%emt 0:00:01]} 40. Rxh6 {[%emt 0:00:02]} f6 {[%emt 0:00:11] [#]} 41. Nxd5 $1 {[%emt 0:00:15][%mdl 512] Weighted Error Value: White=0.22 (precise) /Black=0.49} 1-0

[Event "Czech Open-Rapid 2022"]
[Site "Pardubice"]
[Date "2022.07.21"]
[Round "4.6"]
[White "Vykouk, Jan"]
[Black "Savitha Shri B"]
[Result "1-0"]
[ECO "B24"]
[WhiteElo "2476"]
[BlackElo "2278"]
[Annotator "TA"]
[PlyCount "79"]
[EventDate "2022.07.20"]
[EventType "swiss"]
[EventCountry "CZE"]
[SourceTitle "playchess.com"]
[Source "ChessBase"]
[SourceQuality "1"]
[TimeControl "1200+10"]

{[%evp 9,79,6,2,0,10,0,4,0,66,52,42,40,56,36,70,76,86,33,77,0,0,-36,0,0,1,1,0,0,11,0,20,2,54,68,173,171,169,167,177,176,171,185,174,168,169,161,190,196,247,249,310,308,389,368,377,375,362,342,649,516,5357,3652,29978,29979,5003,1222,29987,29988,29989,29990,29990,29991]} 1. e4 {[%emt 0:02:35]} c5 {[%emt 0:00:01]} 2. Nc3 {[%emt 0:00:01]} Nc6 {[%emt 0:00:02]} 3. Bb5 {[%emt 0:00:02]} Nd4 {[%emt 0:00:02]} 4. Nf3 {[%emt 0:00:01]} Nxb5 {[%emt 0:00:24]} 5. Nxb5 {[%emt 0:00:01]} a6 {[%emt 0:00:01]} 6. Nc3 {[%emt 0:00:02] B23: Closed Sicilian: Lines without g3.} b5 {[%emt 0:00:47]} 7. d4 {[%emt 0:00:05]} cxd4 {[%emt 0:00:25]} 8. Qxd4 {[%emt 0:00:02] The position is equal.} d6 {[%emt 0:01:34] [#]} (8... e6 $1 $11) 9. O-O $146 {[%emt 0:00:24] White is more active.} ({Predecessor:} 9. Bg5 Nf6 10. O-O-O Bg4 11. Rhe1 h6 12. Bxf6 gxf6 13. e5 Bxf3 14. exf6 Bxd1 15. fxe7 Bxe7 16. Qxh8+ {½-½ (27) Ashwin,H (1614)-Wiwatanadate,P (2053) Bangkog 2018}) 9... e5 {[%emt 0:00:39]} 10. Qd3 {[%emt 0:00:06]} Be6 {[%emt 0:01:09]} 11. Rd1 {[%emt 0:00:18]} Bc4 {[%emt 0:00:58]} 12. Qe3 {[%emt 0:00:26] And now Nxe5 would win.} Qc7 {[%emt 0:00:09]} 13. b3 {[%emt 0:00:44]} Be6 {[%emt 0:00:14]} 14. Bb2 {[%emt 0:01:16]} (14. Ba3 $16) 14... Nf6 $11 {[%emt 0:00:10]} 15. Rac1 {[%emt 0:01:15]} Be7 {[%emt 0:01:57]} 16. Nd5 {[%emt 0:00:03]} Bxd5 {[%emt 0:00:25]} 17. exd5 {[%emt 0:00:02]} O-O {[%emt 0:00:04]} 18. c4 {[%emt 0:00:01][%cal Oc4c5]} bxc4 {[%emt 0:01:55]} 19. bxc4 {[%emt 0:00:02][%cal Oc4c5]} Nd7 {[%emt 0:00:09] Inhibits c5.} 20. Ba3 {[%emt 0:00:56]} Rac8 {[%emt 0:00:40]} (20... Rfe8 $11) 21. Nd4 $14 {[%emt 0:00:27] Nf5 is the strong threat.} h6 {[%emt 0:01:42] [#] White leaves nothing to chance now.} (21... Rfe8 $14 22. Nc6 Bf8) 22. Nf5 $1 $18 {[%emt 0:00:05]} Bg5 {[%emt 0:02:55]} 23. Qg3 {[%emt 0:00:02]} Nc5 {[%emt 0:01:50]} 24. Bxc5 $40 {[%emt 0:01:35][%mdl 128] Black is in trouble.} Qxc5 {[%emt 0:00:02] [#]} 25. h4 $1 {[%emt 0:00:06]} Bf6 {[%emt 0:00:02]} 26. Nxh6+ {[%emt 0:00:02]} Kh8 {[%emt 0:00:01]} 27. Nf5 {[%emt 0:00:21][%cal Bh6f5,Bf5g3,Bg3e4][%mdl 32]} Qb4 {[%emt 0:01:37]} 28. Qb3 {[%emt 0:00:17]} Qc5 {[%emt 0:00:12]} (28... Qxb3 {might work better.} 29. axb3 Rfd8) 29. Ng3 {[%emt 0:01:19]} Be7 {[%emt 0:01:35]} 30. Ne4 {[%emt 0:00:16]} Qa5 {[%emt 0:00:01]} 31. c5 {[%emt 0:00:25]} dxc5 {[%emt 0:01:20]} 32. d6 {[%emt 0:00:01][%cal Bd5d6,Bd6d7][%mdl 32]} Bd8 {[%emt 0:00:00]} 33. Qd5 {[%emt 0:00:11]} f5 $2 {[%emt 0:00:30]} (33... Kg8 34. d7 (34. Nxc5 Bxh4 35. d7 Rb8 $18) 34... Rc7) 34. Ng5 {[%emt 0:00:26]} Bxg5 {[%emt 0:00:12]} (34... c4 $142 35. Nf7+ Kh7) 35. hxg5 {[%emt 0:00:02] White wants to mate with Rd3.} e4 {[%emt 0:00:01] Against Rd3} 36. d7 {[%emt 0:00:13]} Rcd8 {[%emt 0:00:01]} 37. Rxc5 {[%emt 0:00:05]} (37. Qe5 $142 Kg8 38. g6) 37... Qa4 {[%emt 0:00:07]} 38. Rc3 {[%emt 0:00:09][%cal Rc3h3] White mates.} Kh7 {[%emt 0:00:46]} 39. Rh3+ {[%emt 0:00:05]} Kg6 {[%emt 0:00:01]} 40. Qd6+ {[%emt 0:00:20] Weighted Error Value: White=0.07 (flawless) /Black=0.63} 1-0